fUST/lending_fUST_20250620
["ID","MTS","AMOUNT","RATE_DAILY","PERIOD"]
[366682786,1750410645202,-434.0784236,0.00021917,6]
[366682788,1750410645212,-430.0,0.00021917,6]
[366682790,1750410645222,-460.0,0.00021917,6]
[366682791,1750410645232,-430.0,0.00021917,6]
[366682793,1750410645242,-477.99765194,0.00021917,6]
[366682795,1750410645251,-460.0,0.00021917,6]
[366682796,1750410645262,-460.0,0.00021917,6]
[366682798,1750410645277,-460.0,0.00021917,6]
[366682800,1750410645286,-463.48510474,0.00021917,6]
[366682801,1750410645298,-460.0,0.00021917,6]
[366682803,1750410645309,-460.0,0.00021917,6]
[366682805,1750410645319,-460.0,0.00021917,6]
[366682807,1750410645329,-460.0,0.00021917,6]
[366682808,1750410645339,-460.0,0.00021917,6]
[366682810,1750410645349,-460.0,0.00021917,6]
[366682812,1750410645358,-460.0,0.00021917,6]
[366682813,1750410645369,-460.0,0.00021917,6]
[366682815,1750410645384,-518.7412417,0.00021917,6]
[366682817,1750410645396,-460.0,0.00021917,6]
[366682819,1750410645406,-460.0,0.00021917,6]
[366682820,1750410645418,-460.0,0.00021917,6]
[366682822,1750410645427,-417.08949347,0.00021917,6]
[366682824,1750410645438,-460.0,0.00021917,6]
[366682825,1750410645447,-460.0,0.00021917,6]
[366682827,1750410645458,-460.0,0.00021917,6]
[366682829,1750410645469,-460.0,0.00021917,6]
[366682831,1750410645479,-500.0,0.00021917,6]
[366682833,1750410645488,-503.32344317,0.00021917,6]
[366682836,1750410645499,-460.0,0.00021917,6]
[366682838,1750410645509,-423.97515591,0.00021917,6]
[366682839,1750410645519,-430.81839586,0.00021917,6]
[366682841,1750410645533,-500.0,0.00021917,6]
[366682843,1750410645543,-500.0,0.00021917,6]
[366682845,1750410645553,-500.0,0.00021917,6]
[366682846,1750410645563,-500.0,0.00021917,6]
[366682848,1750410645573,-500.0,0.00021917,6]
[366682850,1750410645584,-500.0,0.00021917,6]
[366682851,1750410645594,-500.0,0.00021917,6]
[366682853,1750410645603,-500.0,0.00021917,6]
[366682855,1750410645613,-500.0,0.00021917,6]
[366682856,1750410645623,-500.0,0.00021917,6]
[366682858,1750410645632,-500.0,0.00021917,6]
[366682860,1750410645643,-500.0,0.00021917,6]
[366682861,1750410645652,-500.0,0.00021917,6]
[366682863,1750410645662,-460.0,0.00021917,6]
[366682865,1750410645672,-460.0,0.00021917,6]
[366682867,1750410645682,-460.0,0.00021917,6]
[366682868,1750410645692,-411.7094612,0.00021917,6]
[366682870,1750410645701,-460.0,0.00021917,6]
[366682872,1750410645711,-460.0,0.00021917,6]
[366682873,1750410645721,-460.0,0.00021917,6]
[366682875,1750410645731,-460.0,0.00021917,6]
[366682877,1750410645741,-460.0,0.00021917,6]
[366682879,1750410645751,-460.0,0.00021917,6]
[366682880,1750410645760,-460.0,0.00021917,6]
[366682882,1750410645770,-460.0,0.00021917,6]
[366682884,1750410645780,-460.0,0.00021917,6]
[366682885,1750410645790,-460.0,0.00021917,6]
[366682887,1750410645800,-460.0,0.00021917,6]
[366682889,1750410645810,-460.0,0.00021917,6]
[366682890,1750410645820,-460.0,0.00021917,6]
[366682892,1750410645830,-460.0,0.00021917,6]
[366682894,1750410645840,-460.0,0.00021917,6]
[366682895,1750410645850,-833.74,0.00021917,6]
[366682897,1750410645859,-460.0,0.00021917,6]
[366682899,1750410645869,-473.06832883,0.00021917,6]
[366682900,1750410645879,-460.0,0.00021917,6]
[366682902,1750410645889,-460.0,0.00021917,6]
[366682904,1750410645898,-460.0,0.00021917,6]
[366682905,1750410645909,-460.0,0.00021917,6]
[366682907,1750410645920,-460.0,0.00021917,6]
[366682909,1750410645930,-460.0,0.00021917,6]
[366682911,1750410645940,-460.0,0.00021917,6]
[366682912,1750410645949,-535.73,0.00021917,6]
[366682914,1750410645959,-433.33626648,0.00021917,6]
[366682915,1750410645969,-460.0,0.00021917,6]
[366682917,1750410645979,-461.30381698,0.00021917,6]
[366682919,1750410645989,-460.0,0.00021917,6]
[366682921,1750410645999,-460.0,0.00021917,6]
[366682922,1750410646009,-423.78815854,0.00021917,6]
[366682924,1750410646019,-460.0,0.00021917,6]
[366682926,1750410646029,-424.68009567,0.00021917,6]
[366682927,1750410646038,-460.0,0.00021917,6]
[366682929,1750410646047,-460.0,0.00021917,6]
[366682931,1750410646057,-460.0,0.00021917,6]
[366682932,1750410646067,-460.0,0.00021917,6]
[366682934,1750410646077,-652.44,0.00021917,6]
[366682936,1750410646089,-359.8985992,0.00021917,6]
[366682937,1750410646099,-460.47395517,0.00021917,6]
[366682939,1750410646109,-460.0,0.00021917,6]
[366682941,1750410646118,-460.0,0.00021917,6]
[366682943,1750410646129,-460.0,0.00021917,6]
[366682944,1750410646139,-460.0,0.00021917,6]
[366682946,1750410646149,-460.0,0.00021917,6]
[366682948,1750410646158,-460.0,0.00021917,6]
[366682949,1750410646168,-488.96237854,0.00021917,6]
[366682951,1750410646177,-460.0,0.00021917,6]
[366682953,1750410646187,-430.0,0.00021917,6]
[366682954,1750410646197,-460.0,0.00021917,6]
[366682956,1750410646206,-460.0,0.00021917,6]
[366682958,1750410646217,-873.78,0.00021917,6]
[366682959,1750410646227,-460.0,0.00021917,6]
[366682961,1750410646237,-461.46988072,0.00021917,6]
[366682963,1750410646246,-460.0,0.00021917,6]
[366682964,1750410646256,-460.0,0.00021917,6]
[366682966,1750410646267,-460.0,0.00021917,6]
[366682968,1750410646277,-460.0,0.00021917,6]
[366682970,1750410646286,-460.0,0.00021917,6]
[366682971,1750410646296,-460.0,0.00021917,6]
[366682973,1750410646306,-378.82161306,0.00021917,6]
[366682975,1750410646316,-460.0,0.00021917,6]
[366682977,1750410646325,-460.0,0.00021917,6]
[366682978,1750410646334,-460.0,0.00021917,6]
[366682987,1750410646449,-460.0,0.00021917,6]
[366682989,1750410646460,-460.0,0.00021917,6]
[366682991,1750410646470,-460.0,0.00021917,6]
[366682993,1750410646480,-460.0,0.00021917,6]
[366682994,1750410646490,-460.0,0.00021917,6]
[366682996,1750410646500,-460.0,0.00021917,6]
[366682998,1750410646509,-460.0,0.00021917,6]
[366682999,1750410646519,-460.0,0.00021917,6]
[366683001,1750410646529,-462.94105962,0.00021917,6]
[366683003,1750410646539,-460.0,0.00021917,6]
[366683004,1750410646549,-460.0,0.00021917,6]
[366683006,1750410646559,-460.0,0.00021917,6]
[366683008,1750410646568,-460.0,0.00021917,6]
[366683009,1750410646578,-460.0,0.00021917,6]
[366683011,1750410646589,-460.0,0.00021917,6]
[366683013,1750410646598,-460.0,0.00021917,6]
[366683015,1750410646609,-460.0,0.00021917,6]
[366683016,1750410646618,-460.0,0.00021917,6]
[366683018,1750410646628,-460.0,0.00021917,6]
[366683020,1750410646638,-482.14801053,0.00021917,6]
[366683021,1750410646648,-460.0,0.00021917,6]
[366683023,1750410646657,-460.0,0.00021917,6]
[366683025,1750410646667,-460.0,0.00021917,6]
[366683027,1750410646677,-257.75022312,0.00021917,6]
[366683028,1750410646687,-400.0,0.00021917,6]
[366683030,1750410646697,-460.0,0.00021917,6]
[366683032,1750410646707,-379.44360529,0.00021917,6]
[366683034,1750410646717,-472.5503991,0.00021917,6]
[366683035,1750410646729,-460.0,0.00021917,6]
[366683037,1750410646738,-468.2169293,0.00021917,6]
[366683039,1750410646748,-460.0,0.00021917,6]
[366683040,1750410646759,-507.06040437,0.00021917,6]
[366683042,1750410646770,-500.0,0.00021917,6]
[366683044,1750410646779,-460.0,0.00021917,6]
[366683046,1750410646789,-366.90915469,0.00021917,6]
[366683047,1750410646799,-460.0,0.00021917,6]
[366683049,1750410646809,-460.0,0.00021917,6]
[366683051,1750410646819,-461.11147558,0.00021917,6]
[366683053,1750410646830,-460.0,0.00021917,6]
[366683054,1750410646839,-460.0,0.00021917,6]
[366683056,1750410646849,-460.0,0.00021917,6]
[366683058,1750410646858,-460.0,0.00021917,6]
[366683060,1750410646868,-460.0,0.00021917,6]
[366683061,1750410646878,-460.0,0.00021917,6]
[366683063,1750410646888,-467.28698428,0.00021917,6]
[366683065,1750410646898,-460.0,0.00021917,6]
[366683066,1750410646908,-460.0,0.00021917,6]
[366683068,1750410646918,-460.0,0.00021917,6]
[366683070,1750410646928,-460.0,0.00021917,6]
[366683072,1750410646938,-460.0,0.00021917,6]
[366683073,1750410646948,-460.0,0.00021917,6]
[366683075,1750410646958,-460.0,0.00021917,6]
[366683077,1750410646967,-460.0,0.00021917,6]
[366683078,1750410646977,-460.0,0.00021917,6]
[366683080,1750410646986,-432.51533525,0.00021917,6]
[366683082,1750410646996,-773.32,0.00021917,6]
[366683083,1750410647006,-465.17561791,0.00021917,6]
[366683085,1750410647016,-460.0,0.00021917,6]
[366683087,1750410647026,-1011.63,0.00021917,6]
[366683089,1750410647036,-460.0,0.00021917,6]
[366683090,1750410647046,-460.0,0.00021917,6]
[366683092,1750410647057,-460.0,0.00021917,6]
[366683094,1750410647067,-460.0,0.00021917,6]
[366683096,1750410647077,-460.0,0.00021917,6]
[366683097,1750410647087,-460.0,0.00021917,6]
[366683099,1750410647098,-460.0,0.00021917,6]
[366683101,1750410647108,-460.0,0.00021917,6]
[366683102,1750410647117,-460.0,0.00021917,6]
[366683104,1750410647127,-460.0,0.00021917,6]
[366683106,1750410647138,-460.0,0.00021917,6]
[366683108,1750410647147,-460.0,0.00021917,6]
[366683109,1750410647157,-442.02870912,0.00021917,6]
[366683111,1750410647166,-460.0,0.00021917,6]
[366683113,1750410647175,-435.89533013,0.00021917,6]
[366683114,1750410647185,-460.77373895,0.00021917,6]
[366683116,1750410647195,-460.0,0.00021917,6]
[366683118,1750410647204,-460.0,0.00021917,6]
[366683119,1750410647214,-460.0,0.00021917,6]
[366683121,1750410647224,-460.0,0.00021917,6]
[366683123,1750410647234,-432.95503368,0.00021917,6]
[366683125,1750410647245,-461.0959915,0.00021917,6]
[366683126,1750410647254,-460.0,0.00021917,6]
[366683128,1750410647264,-460.0,0.00021917,6]
[366683130,1750410647274,-460.0,0.00021917,6]
[366683132,1750410647284,-460.0,0.00021917,6]
[366683133,1750410647293,-460.0,0.00021917,6]
[366683135,1750410647302,-460.0,0.00021917,6]
[366683137,1750410647312,-460.0,0.00021917,6]
[366683138,1750410647321,-460.0,0.00021917,6]
[366683140,1750410647331,-460.0,0.00021917,6]
[366683142,1750410647340,-460.0,0.00021917,6]
[366683143,1750410647350,-461.57844679,0.00021917,6]
[366683145,1750410647359,-460.0,0.00021917,6]
[366683147,1750410647369,-460.0,0.00021917,6]
[366683149,1750410647383,-512.01797144,0.00021917,6]
[366683150,1750410647393,-460.0,0.00021917,6]
[366683152,1750410647403,-460.0,0.00021917,6]
[366683154,1750410647412,-460.0,0.00021917,6]
[366683156,1750410647423,-460.0,0.00021917,6]
[366683157,1750410647432,-402.04295312,0.00021917,6]
[366683159,1750410647441,-460.0,0.00021917,6]
[366683161,1750410647452,-460.0,0.00021917,6]
[366683162,1750410647461,-460.0,0.00021917,6]
[366683164,1750410647471,-460.0,0.00021917,6]
[366683166,1750410647481,-460.0,0.00021917,6]
[366683168,1750410647491,-460.0,0.00021917,6]
[366683169,1750410647500,-460.0,0.00021917,6]
[366683171,1750410647510,-460.0,0.00021917,6]
[366683173,1750410647520,-500.0,0.00021917,6]
[366683174,1750410647529,-513.39396597,0.00021917,6]
[366683176,1750410647539,-460.0,0.00021917,6]
[366683178,1750410647549,-460.0,0.00021917,6]
[366683180,1750410647559,-494.46,0.00021917,6]
[366683181,1750410647569,-460.0,0.00021917,6]
[366683183,1750410647579,-460.0,0.00021917,6]
[366683185,1750410647589,-460.0,0.00021917,6]
[366683187,1750410647599,-460.0,0.00021917,6]
[366683188,1750410647609,-460.0,0.00021917,6]
[366683190,1750410647619,-460.0,0.00021917,6]
[366683192,1750410647629,-460.0,0.00021917,6]
[366683194,1750410647638,-460.0,0.00021917,6]
[366683195,1750410647648,-460.0,0.00021917,6]
[366683197,1750410647659,-460.0,0.00021917,6]
[366683199,1750410647669,-460.0,0.00021917,6]
[366683201,1750410647678,-460.0,0.00021917,6]
[366683202,1750410647688,-460.0,0.00021917,6]
[366683204,1750410647698,-460.0,0.00021917,6]
[366683206,1750410647707,-460.0,0.00021917,6]
[366683207,1750410647717,-460.0,0.00021917,6]
[366683209,1750410647726,-460.0,0.00021917,6]
[366683211,1750410647735,-460.0,0.00021917,6]
[366683212,1750410647745,-279.8693787,0.00021917,6]
[366683214,1750410647754,-460.0,0.00021917,6]
[366683216,1750410647764,-460.0,0.00021917,6]
[366683218,1750410647774,-460.0,0.00021917,6]
[366683219,1750410647784,-460.0,0.00021917,6]
[366683221,1750410647794,-423.6857012,0.00021917,6]
[366683223,1750410647804,-460.0,0.00021917,6]
[366683224,1750410647813,-200.0,0.00021917,10]
[366683226,1750410647823,-200.0,0.00021917,10]
[366683228,1750410647833,-460.0,0.00021917,6]
[366683229,1750410647842,-153.023992,0.00021917,10]
[366683231,1750410647852,-495.8395835,0.00021917,6]
[366683233,1750410647861,-460.0,0.00021917,6]
[366683234,1750410647871,-460.0,0.00021917,6]
[366683236,1750410647881,-460.0,0.00021917,6]
[366683238,1750410647890,-403.45563093,0.00021917,6]
[366683239,1750410647900,-460.0,0.00021917,6]
[366683241,1750410647910,-460.0,0.00021917,6]
[366683243,1750410647920,-460.0,0.00021917,6]
[366683251,1750410648021,-460.0,0.00021917,6]
[366683253,1750410648033,-460.0,0.00021917,6]
[366683254,1750410648044,-460.0,0.00021917,6]
[366683256,1750410648054,-460.0,0.00021917,6]
[366683258,1750410648067,-460.0,0.00021917,6]
[366683260,1750410648078,-460.0,0.00021917,6]
[366683261,1750410648089,-400.90681113,0.00021917,6]
[366683263,1750410648100,-460.0,0.00021917,6]
[366683265,1750410648110,-430.0,0.00021917,6]
[366683266,1750410648121,-460.0,0.00021917,6]
[366683268,1750410648133,-460.0,0.00021917,6]
[366683270,1750410648145,-460.0,0.00021917,6]
[366683272,1750410648155,-460.0,0.00021917,6]
[366683274,1750410648166,-461.96937602,0.00021917,6]
[366683276,1750410648176,-460.0,0.00021917,6]
[366683278,1750410648186,-468.10705049,0.00021917,6]
[366683279,1750410648197,-460.0,0.00021917,6]
[366683281,1750410648207,-460.0,0.00021917,6]
[366683283,1750410648217,-460.0,0.00021917,6]
[366683285,1750410648227,-438.47439905,0.00021917,6]
[366683287,1750410648238,-573.55779252,0.00021917,6]
[366683289,1750410648248,-460.0,0.00021917,6]
[366683291,1750410648258,-460.0,0.00021917,6]
[366683293,1750410648268,-460.0,0.00021917,6]
[366683295,1750410648278,-460.0,0.00021917,6]
[366683297,1750410648288,-460.0,0.00021917,6]
[366683299,1750410648299,-462.79001107,0.00021917,6]
[366683301,1750410648310,-460.0,0.00021917,6]
[366683302,1750410648321,-460.0,0.00021917,6]
[366683303,1750410648331,-460.0,0.00021917,6]
[366683304,1750410648342,-460.0,0.00021917,6]
[366683305,1750410648352,-460.0,0.00021917,6]
[366683306,1750410648362,-460.0,0.00021917,6]
[366683307,1750410648374,-432.89983527,0.00021917,6]
[366683308,1750410648390,-460.0,0.00021917,6]
[366683309,1750410648401,-430.0,0.00021917,6]
[366683310,1750410648411,-460.0,0.00021917,6]
[366683311,1750410648422,-405.44507716,0.00021917,6]
[366683312,1750410648432,-460.0,0.00021917,6]
[366683313,1750410648442,-460.0,0.00021917,6]
[366683314,1750410648452,-460.0,0.00021917,6]
[366683315,1750410648461,-460.0,0.00021917,6]
[366683316,1750410648472,-460.0,0.00021917,6]
[366683317,1750410648481,-460.0,0.00021917,6]
[366683318,1750410648492,-460.0,0.00021917,5]
[366683319,1750410648502,-404.96027266,0.00021917,6]
[366683320,1750410648512,-460.0,0.00021917,6]
[366683321,1750410648522,-500.0,0.00021917,2]
[366683322,1750410648532,-460.0,0.00021917,6]
[366683323,1750410648542,-466.75127127,0.00021917,6]
[366683324,1750410648552,-231.45709632,0.00021917,6]
[366683325,1750410648562,-460.0,0.00021917,6]
[366683326,1750410648574,-460.0,0.00021917,6]
[366683327,1750410648585,-460.0,0.00021917,6]
[366683328,1750410648594,-460.0,0.00021917,6]
[366683329,1750410648604,-460.0,0.00021917,6]
[366683330,1750410648614,-463.16538105,0.00021917,6]
[366683331,1750410648625,-300.0,0.00021917,6]
[366683332,1750410648635,-527.50701064,0.00021917,6]
[366683333,1750410648645,-460.0,0.00021917,2]
[366683334,1750410648654,-460.0,0.00021917,6]
[366683335,1750410648664,-465.47438979,0.00021917,6]
[366683336,1750410648674,-460.0,0.00021917,6]
[366683337,1750410648685,-460.0,0.00021917,6]
[366683338,1750410648695,-460.0,0.00021917,6]
[366683339,1750410648705,-460.0,0.00021917,6]
[366683340,1750410648715,-399.68014378,0.00021917,6]
[366683341,1750410648726,-446.40846,0.00021917,6]
[366683342,1750410648736,-460.0,0.00021917,6]
[366683343,1750410648746,-460.0,0.00021917,6]
[366683344,1750410648757,-460.0,0.00021917,6]
[366683345,1750410648767,-460.0,0.00021917,6]
[366683346,1750410648777,-460.0,0.00021917,6]
[366683347,1750410648786,-460.0,0.00021917,6]
[366683348,1750410648796,-460.0,0.00021917,6]
[366683349,1750410648806,-215.26867261,0.00021917,2]
[366683350,1750410648818,-460.98438326,0.00021917,6]
[366683351,1750410648828,-460.0,0.00021917,6]
[366683352,1750410648838,-891.51,0.00021917,2]
[366683353,1750410648848,-420.36975692,0.00021917,6]
[366683354,1750410648858,-460.0,0.00021917,6]
[366683355,1750410648868,-460.0,0.00021917,6]
[366683356,1750410648877,-433.91801966,0.00021917,6]
[366683357,1750410648887,-460.0,0.00021917,6]
[366683358,1750410648897,-166.0,0.00021918,2]
[366683359,1750410648907,-283.90234346,0.00021973,2]
[366683360,1750410648918,-265.65250003,0.00021973,2]
[366683361,1750410648928,-500.0,0.00021973,2]
[366683362,1750410648938,-504.24180697,0.00021973,2]
[366683363,1750410648949,-500.0,0.00021973,2]
[366683364,1750410648959,-500.0,0.00021973,2]
[366683365,1750410648969,-500.0,0.00021973,2]
[366683366,1750410648980,-247.75092905,0.00021973,2]
[366683368,1750410649037,-254.65974723,0.00021973,2]
[366683369,1750410649047,-160.2801152,0.00021973,2]
[366683370,1750410649057,-537.978401,0.00021973,2]
[366683372,1750410649068,-500.0,0.00021973,2]
[366683373,1750410649078,-500.0,0.00021973,2]
[366683374,1750410649088,-500.0,0.00021973,2]
[366683375,1750410649098,-500.0,0.00021973,2]
[366683377,1750410649108,-500.0,0.00021973,2]
[366683378,1750410649119,-472.56389873,0.00021973,2]
[366683380,1750410649129,-506.63167731,0.00021973,2]
[366683382,1750410649138,-94.22687251,0.00021973,2]
[366683478,1750410650119,-0.13110802,0.00021817,2]
[366683480,1750410650132,-183.48858467,0.00021817,2]
[366683482,1750410650149,-460.0,0.00021917,6]
[366683484,1750410650161,-405.77312749,0.00021973,2]
[366683486,1750410650171,-500.0,0.00021973,2]
[366683488,1750410650180,-500.0,0.00021973,2]
[366683489,1750410650192,-156.6954544,0.00021973,2]
[366683491,1750410650201,-500.0,0.00021973,2]
[366683494,1750410650212,-500.0,0.00021973,2]
[366683495,1750410650222,-500.0,0.00021973,2]
[366683498,1750410650232,-500.0,0.00021973,2]
[366683499,1750410650242,-500.27175579,0.00021973,2]
[366683501,1750410650252,-442.82995944,0.00021973,2]
[366683505,1750410650272,-53.15465734,0.00021973,2]
[366683573,1750410650954,-155.0,0.00020982,2]
[366683654,1750410651758,-155.0,0.00020982,2]
[366684632,1750410664811,-5.44239802,0.00020982,2]
[366684635,1750410664834,-187.73860198,0.00020982,2]
[366685256,1750410671163,-158.83822416,0.00020982,2]
[366685298,1750410677361,-38.78288914,0.00020982,2]
[366685299,1750410677387,-202.01260349,0.00020982,2]
[366685300,1750410684836,-300.1066694,0.00020982,2]
[366685301,1750410684860,-96.60757063,0.00020982,2]
[366685302,1750410689913,-195.26161375,0.00020982,2]
[366685303,1750410689938,-9.50079441,0.00020982,2]
[366685304,1750410692259,-176.0325545,0.00020982,2]
[366685305,1750410703986,-417.2674455,0.00020772,2]
[366685306,1750410708660,-176.0325545,0.00020772,2]
[366685307,1750410713974,-166.283179,0.00020772,2]
[366685308,1750410723861,-160.0,0.00020772,2]
[366685309,1750410725855,-4080.416821,0.00020772,2]
[366685310,1750410725877,-298.0,0.00020837,2]
[366685311,1750410725899,-300.0,0.00020837,2]
[366685312,1750410725922,-24900.0,0.00020838,2]
[366685313,1750410725945,-3558.583179,0.00020982,2]
[366685314,1750410735343,-300.0,0.00020772,2]
[366685315,1750410749305,-158.25,0.00020772,2]
[366685316,1750410754971,1000.0,0.00024,120]
[366685317,1750410762097,-164.71053958,0.00020772,2]
[366685318,1750410778100,-164.71053958,0.00020772,2]
[366685319,1750410783179,-88.71115901,0.00020772,2]
[366685320,1750410783202,-202.69938057,0.00020853,2]
[366685321,1750410845890,-268.0861953,0.00020351,2]
[366685322,1750410847089,-37.50079523,0.00020351,2]
[366685323,1750410847123,-152.79349526,0.00020352,2]
[366685324,1750410847154,-77.79190481,0.00020853,2]
[366685325,1750410868376,381.91428876,0.00019817,2]
[366685326,1750410885922,254.60952584,0.00019817,2]
[366685327,1750410912355,-19.50871462,0.00020853,2]
[366685328,1750410912379,-226.67330297,0.0002088,2]
[366685329,1750410914202,10000.0,0.00019986,2]
[366685330,1750410924850,-246.18201759,0.00020671,2]
[366685331,1750411033376,-253.81798241,0.0002088,2]
[366685332,1750411046137,-154.02278158,0.00020671,2]
[366685333,1750411073206,-204.0,0.00020671,2]
[366685335,1750411096324,-141.97721842,0.00020671,2]
[366685336,1750411096347,-38.00278158,0.00020873,2]
[366685337,1750411100351,-165.83710826,0.00020873,2]
[366685338,1750411100376,-5.75249719,0.0002088,2]
[366685339,1750411107648,-259.61,0.00020671,2]
[366685340,1750411166249,-204.76240816,0.00020542,2]
[366685341,1750411167859,202.123277,0.00013699,2]
[366685342,1750411168076,202.123277,0.00020187,2]
[366685343,1750411169583,169.73968389,0.00019817,2]
[366685345,1750411187307,150.0,0.00019817,2]
[366685346,1750411296212,538.76518974,0.0002022,2]
[366685347,1750411332571,15976.4106425,0.00019975,2]
[366685348,1750411388551,-178.5849804,0.00020542,2]
[366685349,1750411408590,564.492075,0.00019948,2]
[366685351,1750411470956,150.0,0.00019817,2]
[366685352,1750411490807,5000.0,0.0002022,2]
[366685353,1750411491139,188.610434,0.00019948,2]
[366685354,1750411491394,-160.0,0.00020542,2]
[366685355,1750411506952,160.0,0.0002022,2]
[366685356,1750411513623,-47.82245112,0.00020542,2]
[366685357,1750411513649,-168.09039619,0.00020724,2]
[366685358,1750411523606,-179.22458523,0.00020517,2]
[366685360,1750411653794,21697.73542087,0.0001997,2]
[366685361,1750411653832,3202.26457913,0.0001997,2]
[366685363,1750411675026,135089.99088034,0.00018,2]
[366685364,1750411711191,1162.01666881,0.00019,2]
[366685365,1750411712488,5000.0,0.000202,2]
[366685366,1750411719376,84790.41383792,0.00017,2]
[366685367,1750411722323,21954.82054918,0.00018,2]
[366685368,1750411724721,29128.12803139,0.00018,2]
[366685369,1750411725759,151.0,0.0002,120]
[366685370,1750411726239,164.1730129,0.00025122,120]
[366685371,1750411728461,154.11444264,0.000168,2]
[366685372,1750411730149,413.2297769,0.0002,2]
[366685415,1750411832549,-215.91284731,0.00020644,2]
[366685416,1750411832559,-160.0,0.00020846,2]
[366685417,1750411832569,-182.2143454,0.0002087,2]
[366685419,1750411832579,-613.97513023,0.0002087,2]
[366685421,1750411832589,-300.0,0.00020968,2]
[366685423,1750411832598,-300.0,0.00020968,2]
[366685425,1750411832608,-300.0,0.00020968,2]
[366685427,1750411832618,-300.0,0.00020968,2]
[366685428,1750411832627,-1200.0,0.00020968,2]
[366685429,1750411832637,-773.0240121,0.00020969,2]
[366685430,1750411832647,-500.0,0.00020969,2]
[366685431,1750411832657,-405.07556241,0.00020969,2]
[366685432,1750411832667,-773.0240121,0.00020969,2]
[366685433,1750411832677,-773.0240121,0.00020969,2]
[366685434,1750411832687,-773.0240121,0.00020969,2]
[366685435,1750411832697,-773.0240121,0.00020969,2]
[366685436,1750411832707,-773.0240121,0.00020969,2]
[366685437,1750411832717,-773.0240121,0.00020969,2]
[366685438,1750411832726,-773.0240121,0.00020969,2]
[366685439,1750411832737,-773.0240121,0.00020969,2]
[366685440,1750411832748,-773.0240121,0.00020969,2]
[366685441,1750411832759,-773.0240121,0.00020969,2]
[366685442,1750411832768,-773.0240121,0.00020969,2]
[366685443,1750411832777,-773.0240121,0.00020969,2]
[366685444,1750411832787,-773.0240121,0.00020969,2]
[366685445,1750411832796,-773.0240121,0.00020969,2]
[366685446,1750411832806,-773.0240121,0.00020969,2]
[366685447,1750411832815,-773.0240121,0.00020969,2]
[366685448,1750411832825,-773.0240121,0.00020969,2]
[366685449,1750411832834,-773.0240121,0.00020969,2]
[366685450,1750411832843,-773.0240121,0.00020969,2]
[366685451,1750411832853,-773.0240121,0.00020969,2]
[366685452,1750411832862,-1073.58518607,0.00020969,2]
[366685453,1750411832872,-1073.58518607,0.00020969,2]
[366685454,1750411832881,-1073.58518607,0.00020969,2]
[366685455,1750411832890,-1073.58518607,0.00020969,2]
[366685456,1750411832900,-1073.58518607,0.00020969,2]
[366685457,1750411832909,-1073.58518607,0.00020969,2]
[366685458,1750411832918,-1073.58518607,0.00020969,2]
[366685459,1750411832928,-300.0,0.00020969,2]
[366685460,1750411832937,-25338.50302628,0.0002097,2]
[366685461,1750411832993,-287.51410255,0.0002097,2]
[366685467,1750411838118,-369.03612305,0.00020968,2]
[366685468,1750411838127,-500.0,0.00020968,2]